fUSD/lending_fUSD_20240517
["ID","MTS","AMOUNT","RATE_DAILY","PERIOD"]
[327302289,1715976640875,-500.0,0.00012999,2]
[327302291,1715976640884,-265.08,0.00012999,2]
[327302293,1715976640893,-500.0,0.00012999,2]
[327302295,1715976640902,-500.0,0.00012999,2]
[327302297,1715976640911,-404.67,0.00012999,2]
[327302299,1715976640920,-500.0,0.00012999,2]
[327302301,1715976640929,-621.67,0.00012999,2]
[327302303,1715976640938,-500.0,0.00012999,2]
[327302305,1715976640947,-500.0,0.00012999,2]
[327302307,1715976640957,-405.97,0.00012999,2]
[327302309,1715976640966,-500.0,0.00012999,2]
[327302311,1715976640975,-500.0,0.00012999,2]
[327302313,1715976640984,-500.0,0.00012999,2]
[327302315,1715976640993,-500.0,0.00012999,2]
[327302317,1715976641006,-500.0,0.00012999,2]
[327302319,1715976641016,-500.0,0.00012999,2]
[327302321,1715976641026,-500.0,0.00012999,2]
[327302323,1715976641035,-500.0,0.00012999,2]
[327302325,1715976641044,-500.0,0.00012999,2]
[327302327,1715976641054,-500.0,0.00012999,2]
[327302329,1715976641063,-500.0,0.00012999,2]
[327302331,1715976641072,-500.0,0.00012999,2]
[327302333,1715976641082,-500.0,0.00012999,2]
[327302335,1715976641091,-500.0,0.00012999,2]
[327302337,1715976641100,-500.0,0.00012999,2]
[327302339,1715976641110,-500.0,0.00012999,2]
[327302341,1715976641119,-500.0,0.00012999,2]
[327302343,1715976641128,-500.0,0.00012999,2]
[327302345,1715976641138,-500.0,0.00012999,2]
[327302347,1715976641147,-500.0,0.00012999,2]
[327302349,1715976641156,-500.0,0.00012999,2]
[327302351,1715976641165,-500.0,0.00012999,2]
[327302353,1715976641174,-500.0,0.00012999,2]
[327302356,1715976641187,-500.0,0.00012999,2]
[327302358,1715976641196,-500.0,0.00012999,2]
[327302360,1715976641205,-500.0,0.00012999,2]
[327302362,1715976641214,-500.0,0.00012999,2]
[327302364,1715976641224,-500.0,0.00012999,2]
[327302366,1715976641234,-500.0,0.00012999,2]
[327302368,1715976641243,-500.0,0.00012999,2]
[327302370,1715976641253,-500.0,0.00012999,2]
[327302372,1715976641262,-500.0,0.00012999,2]
[327302374,1715976641271,-500.0,0.00012999,2]
[327302376,1715976641280,-624.42,0.00012999,2]
[327302378,1715976641290,-500.0,0.00012999,2]
[327302380,1715976641299,-500.0,0.00012999,2]
[327302382,1715976641308,-471.88,0.00012999,2]
[327302384,1715976641318,-500.0,0.00012999,2]
[327302386,1715976641327,-500.0,0.00012999,2]
[327302388,1715976641336,-500.0,0.00012999,2]
[327302390,1715976641345,-500.0,0.00012999,2]
[327302392,1715976641354,-598.29,0.00012999,2]
[327302394,1715976641364,-500.0,0.00012999,2]
[327302396,1715976641373,-598.29,0.00012999,2]
[327302398,1715976641382,-598.29,0.00012999,2]
[327302400,1715976641391,-598.29,0.00012999,2]
[327302402,1715976641401,-598.29,0.00012999,2]
[327302404,1715976641409,-500.0,0.00012999,2]
[327302406,1715976641418,-500.0,0.00012999,2]
[327302408,1715976641428,-446.78,0.00012999,2]
[327302410,1715976641437,-500.0,0.00012999,2]
[327302412,1715976641446,-500.0,0.00012999,2]
[327302414,1715976641457,-500.0,0.00012999,2]
[327302416,1715976641466,-500.0,0.00012999,2]
[327302418,1715976641475,-500.0,0.00012999,2]
[327302420,1715976641484,-500.0,0.00012999,2]
[327302422,1715976641495,-500.0,0.00012999,2]
[327302424,1715976641504,-500.0,0.00012999,2]
[327302426,1715976641513,-500.0,0.00012999,2]
[327302428,1715976641523,-500.0,0.00012999,2]
[327302430,1715976641533,-500.0,0.00012999,2]
[327302432,1715976641543,-500.0,0.00012999,2]
[327302434,1715976641552,-500.0,0.00012999,2]
[327302436,1715976641562,-231.49625,0.00012999,2]
[327302438,1715976641571,-500.0,0.00012999,2]
[327302440,1715976641582,-500.0,0.00012999,2]
[327302442,1715976641591,-544.88,0.00012999,2]
[327302445,1715976641601,-500.0,0.00012999,2]
[327302447,1715976641611,-500.0,0.00012999,2]
[327302449,1715976641620,-500.0,0.00012999,2]
[327302451,1715976641630,-500.0,0.00012999,2]
[327302453,1715976641639,-500.0,0.00012999,2]
[327302455,1715976641649,-430.46,0.00012999,2]
[327302457,1715976641658,-500.0,0.00012999,2]
[327302459,1715976641667,-500.0,0.00012999,2]
[327302461,1715976641676,-500.0,0.00012999,2]
[327302463,1715976641685,-500.0,0.00012999,2]
[327302465,1715976641695,-500.0,0.00012999,2]
[327302467,1715976641704,-500.0,0.00012999,2]
[327302469,1715976641713,-500.0,0.00012999,2]
[327302471,1715976641723,-332.81,0.00012999,2]
[327302473,1715976641732,-500.0,0.00012999,2]
[327302475,1715976641745,-500.0,0.00012999,2]
[327302477,1715976641755,-500.0,0.00012999,2]
[327302479,1715976641764,-500.0,0.00012999,2]
[327302481,1715976641774,-500.0,0.00012999,2]
[327302483,1715976641784,-500.0,0.00012999,2]
[327302485,1715976641794,-500.0,0.00012999,2]
[327302487,1715976641803,-500.0,0.00012999,2]
[327302489,1715976641812,-500.0,0.00012999,2]
[327302491,1715976641824,-500.0,0.00012999,2]
[327302493,1715976641835,-500.0,0.00012999,2]
[327302495,1715976641844,-500.0,0.00012999,2]
[327302497,1715976641853,-500.0,0.00012999,2]
[327302499,1715976641863,-470.16,0.00012999,2]
[327302501,1715976641872,-437.77286345,0.00012999,2]
[327302503,1715976641882,-500.0,0.00012999,2]
[327302505,1715976641891,-500.0,0.00012999,2]
[327302507,1715976641901,-178.87,0.00012999,2]
[327302509,1715976641911,-500.0,0.00012999,2]
[327302511,1715976641920,-500.0,0.00012999,2]
[327302513,1715976641929,-500.0,0.00012999,2]
[327302515,1715976641938,-500.0,0.00012999,2]
[327302517,1715976641948,-500.0,0.00012999,2]
[327302519,1715976641957,-500.0,0.00012999,2]
[327302521,1715976641966,-500.0,0.00012999,2]
[327302523,1715976641976,-500.0,0.00012999,2]
[327302525,1715976641986,-500.0,0.00012999,2]
[327302527,1715976641995,-500.0,0.00012999,2]
[327302529,1715976642004,-500.0,0.00012999,2]
[327302531,1715976642013,-645.49,0.00012999,2]
[327302533,1715976642023,-500.0,0.00012999,2]
[327302535,1715976642032,-500.0,0.00012999,2]
[327302537,1715976642041,-500.0,0.00012999,2]
[327302539,1715976642051,-500.0,0.00012999,2]
[327302541,1715976642060,-500.0,0.00012999,2]
[327302543,1715976642071,-500.0,0.00012999,2]
[327302545,1715976642080,-492.09,0.00012999,2]
[327302547,1715976642089,-500.0,0.00012999,2]
[327302549,1715976642099,-500.0,0.00012999,2]
[327302551,1715976642108,-500.0,0.00012999,2]
[327302553,1715976642118,-208.13983695,0.00012999,2]
[327302555,1715976642127,-374.71,0.00012999,2]
[327302557,1715976642137,-500.0,0.00012999,2]
[327302559,1715976642146,-500.0,0.00012999,2]
[327302561,1715976642155,-500.0,0.00012999,2]
[327302563,1715976642165,-500.0,0.00012999,2]
[327302565,1715976642174,-500.0,0.00012999,2]
[327302567,1715976642183,-500.0,0.00012999,2]
[327302569,1715976642193,-500.0,0.00012999,2]
[327302571,1715976642202,-500.0,0.00012999,2]
[327302573,1715976642212,-621.64,0.00012999,2]
[327302575,1715976642221,-329.61740967,0.00012999,2]
[327302577,1715976642232,-6391.03555838,0.00013,2]
[327302579,1715976642242,-217.0,0.00013,2]
[327302581,1715976642252,-217.0,0.00013,2]
[327302583,1715976642262,-547.73087551,0.00013,2]
[327302585,1715976642272,-1004.88727076,0.00013,2]
[327302587,1715976642281,-7206.1044977,0.00013,2]
[327302589,1715976642291,-224.0,0.00013,2]
[327302591,1715976642301,-345.95337229,0.00013,2]
[327302593,1715976642310,-173.43554886,0.00013,2]
[327302595,1715976642319,-155.0,0.00013,2]
[327302597,1715976642329,-695.7147823,0.00013,2]
[327302599,1715976642338,-216.0,0.00013,2]
[327302601,1715976642348,-216.0,0.00013,2]
[327302604,1715976642366,-216.0,0.00013,2]
[327302606,1715976642377,-216.0,0.00013,2]
[327302608,1715976642387,-216.0,0.00013,2]
[327302610,1715976642398,-216.0,0.00013,2]
[327302612,1715976642408,-216.0,0.00013,2]
[327302614,1715976642418,-216.0,0.00013,2]
[327302617,1715976642428,-216.0,0.00013,2]
[327302619,1715976642438,-300.0,0.00013,2]
[327302621,1715976642448,-220.0,0.00013,2]
[327302623,1715976642458,-220.0,0.00013,2]
[327302625,1715976642469,-220.0,0.00013,2]
[327302627,1715976642479,-220.0,0.00013,2]
[327302629,1715976642490,-3872.645,0.00013,2]
[327302631,1715976642500,-2000.0,0.00013,2]
[327302633,1715976642510,-2000.0,0.00013,2]
[327302635,1715976642520,-493731.58936509,0.00013,2]
[327302637,1715976642530,-160465.82596969,0.00013,2]
[327302641,1715976642556,-316488.11002388,0.00013,2]
[327302643,1715976642569,-3304.7964,0.00013,2]
[327302646,1715976642582,-5897.93599999,0.00013,2]
[327302648,1715976642598,-5731.89280292,0.00013,2]
[327302651,1715976642617,-3730.36434643,0.00013,2]
[327302653,1715976642629,-7610.24471485,0.00013,2]
[327302656,1715976642647,-44222.50376391,0.00013,2]
[327302659,1715976642656,-1359.9892133,0.00013,2]
[327302661,1715976642666,-366.62421117,0.00013,2]
[327302665,1715976642676,-560.7283452,0.00013,2]
[327302668,1715976642686,-20213.93210664,0.00013,2]
[327302670,1715976642695,-200.0,0.00013,2]
[327302672,1715976642706,-3000.0,0.00013,2]
[327302674,1715976642716,-10108.5476371,0.00013,2]
[327302676,1715976642726,-2197.3632189,0.00013,2]
[327302678,1715976642736,-322.50525056,0.00013,2]
[327302681,1715976642749,-2152.1285162,0.00013,2]
[327302684,1715976642759,-1012.88,0.00013,2]
[327302687,1715976642769,-39955.7557802,0.00013,2]
[327302690,1715976642779,-6114.4381387,0.00013,2]
[327302692,1715976642789,-313.74,0.00013,2]
[327302695,1715976642799,-560.0,0.00013009,2]
[327302698,1715976642809,-500.0,0.00013013,2]
[327302701,1715976642821,-500.0,0.00013013,2]
[327302703,1715976642831,-360.52,0.00013013,2]
[327302705,1715976642840,-500.0,0.00013013,2]
[327302707,1715976642850,-500.0,0.00013013,2]
[327302711,1715976642860,-500.0,0.00013013,2]
[327302715,1715976642870,-500.0,0.00013013,2]
[327302719,1715976642879,-500.0,0.00013013,2]
[327302723,1715976642889,-500.0,0.00013013,2]
[327302727,1715976642899,-500.0,0.00013013,2]
[327302731,1715976642909,-500.0,0.00013013,2]
[327302735,1715976642919,-442.01541754,0.00013013,2]
[327302739,1715976642929,-500.0,0.00013013,2]
[327302742,1715976642939,-500.0,0.00013013,2]
[327302745,1715976642949,-500.0,0.00013013,2]
[327302749,1715976642958,-500.0,0.00013013,2]
[327302752,1715976642968,-500.0,0.00013013,2]
[327302754,1715976642978,-500.0,0.00013013,2]
[327302756,1715976642989,-647.1,0.00013013,2]
[327302757,1715976642999,-598.29,0.00013013,2]
[327302760,1715976643008,-500.0,0.00013013,2]
[327302761,1715976643018,-475.19,0.00013013,2]
[327302763,1715976643028,-500.0,0.00013013,2]
[327302765,1715976643038,-500.0,0.00013013,2]
[327302767,1715976643048,-500.0,0.00013013,2]
[327302770,1715976643058,-500.0,0.00013013,2]
[327302772,1715976643068,-500.0,0.00013013,2]
[327302773,1715976643077,-500.0,0.00013013,2]
[327302776,1715976643087,-112831.0,0.00013014,2]
[327302777,1715976643097,-5001.24986023,0.0001305,2]
[327302778,1715976643106,-711.47413324,0.000131,2]
[327302779,1715976643116,-200.0,0.0001313,2]
[327302780,1715976643125,-500.0,0.0001315,2]
[327302781,1715976643135,-500.0,0.0001315,2]
[327302782,1715976643144,-1485.14,0.0001337,15]
[327302783,1715976643153,-500.0,0.00013424,2]
[327302784,1715976643163,-500.0,0.00013424,2]
[327302785,1715976643172,-1000.0,0.00013425,2]
[327302786,1715976643181,-500.0,0.00013499,2]
[327302787,1715976643191,-351.71,0.00013499,2]
[327302788,1715976643201,-500.0,0.00013499,2]
[327302789,1715976643211,-500.0,0.00013499,2]
[327302791,1715976643220,-500.0,0.00013499,2]
[327302794,1715976643230,-500.0,0.00013499,2]
[327302796,1715976643241,-500.0,0.00013499,2]
[327302798,1715976643250,-500.0,0.00013499,2]
[327302800,1715976643260,-500.0,0.00013499,2]
[327302802,1715976643269,-500.0,0.00013499,2]
[327302804,1715976643282,-500.0,0.00013499,2]
[327302806,1715976643293,-500.0,0.00013499,2]
[327302808,1715976643303,-500.0,0.00013499,2]
[327302810,1715976643313,-500.0,0.00013499,2]
[327302812,1715976643323,-500.0,0.00013499,2]
[327302814,1715976643333,-500.0,0.00013499,2]
[327302816,1715976643343,-500.0,0.00013499,2]
[327302818,1715976643353,-598.29,0.00013499,2]
[327302820,1715976643363,-500.0,0.00013499,2]
[327302823,1715976643373,-500.0,0.00013499,2]
[327302825,1715976643383,-500.0,0.00013499,2]
[327302827,1715976643393,-155.19,0.00013499,2]
[327302829,1715976643406,-500.0,0.00013499,2]
[327302830,1715976643415,-500.0,0.00013499,2]
[327302832,1715976643425,-1000.0,0.000135,2]
[327302835,1715976643437,-43706.29170084,0.000135,2]
[327302837,1715976643453,-104116.82235615,0.000135,2]
[327302840,1715976643465,-3385.96953395,0.000135,2]
[327302850,1715976643555,-1000.0,0.000132,2]
[327302852,1715976643566,-49956.81640906,0.000135,2]
[327302854,1715976643576,-155.79,0.00013567,2]
[327302856,1715976643586,-322.13181547,0.00013698,2]
[327302857,1715976643596,-1000.0,0.00013698,2]
[327302859,1715976643606,-1000.0,0.00013698,2]
[327302861,1715976643617,-1000.0,0.00013698,2]
[327302863,1715976643627,-981.47911773,0.00013698,2]
[327302864,1715976643637,-1000.0,0.00013698,5]
[327302865,1715976643647,-1000.0,0.00013698,5]
[327302866,1715976643657,-1000.0,0.00013698,5]
[327302867,1715976643666,-1000.0,0.00013698,5]
[327302868,1715976643676,-1000.0,0.00013698,5]
[327302869,1715976643686,-1000.0,0.00013698,5]
[327302870,1715976643697,-1000.0,0.00013698,5]
[327302871,1715976643707,-1000.0,0.00013698,5]
[327302872,1715976643716,-1025.58789259,0.00013698,5]
[327302873,1715976643727,-975.6637581,0.00013698,2]
[327302874,1715976643738,-200.0,0.00013699,2]
[327302875,1715976643751,-200.0,0.00013699,2]
[327302876,1715976643760,-200.0,0.00013699,2]
[327302877,1715976643771,-200.0,0.00013699,2]
[327302878,1715976643781,-200.0,0.00013699,2]
[327302879,1715976643791,-200.0,0.00013699,2]
[327302880,1715976643801,-200.0,0.00013699,2]
[327302881,1715976643812,-200.0,0.00013699,2]
[327302882,1715976643824,-200.0,0.00013699,2]
[327302883,1715976643834,-200.0,0.00013699,2]
[327302884,1715976643843,-6075.6,0.00013699,2]
[327302885,1715976643853,-20253.2,0.00013699,2]
[327302886,1715976643864,-200.0,0.00013699,2]
[327302887,1715976643873,-500.0,0.00013699,2]
[327302888,1715976643883,-250.0,0.00013699,2]
[327302889,1715976643892,-2751.0,0.00013699,2]
[327302890,1715976643902,-342.66,0.00013699,2]
[327302891,1715976643912,-2309.6,0.00013699,2]
[327302892,1715976643921,-300.0,0.00013699,2]
[327302893,1715976643931,-300.0,0.00013699,2]
[327302894,1715976643940,-300.0,0.00013699,2]
[327302895,1715976643949,-300.0,0.00013699,2]
[327302896,1715976643958,-300.0,0.00013699,2]
[327302897,1715976643968,-300.0,0.00013699,2]
[327302898,1715976643978,-300.0,0.00013699,2]
[327302899,1715976643988,-300.0,0.00013699,2]
[327302900,1715976643998,-300.0,0.00013699,2]
[327302901,1715976644007,-300.0,0.00013699,2]
[327302902,1715976644017,-6822.35,0.000137,2]
[327302903,1715976644028,-6822.35,0.000137,2]
[327302904,1715976644038,-6822.35,0.000137,2]
[327302905,1715976644048,-150.0,0.00013811,2]
[327302906,1715976644057,-1012.88,0.0001383,2]
[327302907,1715976644067,-280.44,0.00013916,2]
[327302908,1715976644077,-313.74,0.0001395,2]
[327302909,1715976644087,-628.58,0.00013973,2]
[327302910,1715976644097,-546.97,0.00013973,2]
[327302911,1715976644106,-165.21,0.00013973,2]
[327302912,1715976644116,-250.38,0.00013973,2]
[327302913,1715976644126,-418.6,0.00013973,2]
[327302914,1715976644136,-1000.0,0.00014,2]
[327302915,1715976644146,-155.0,0.00014,2]
[327302916,1715976644156,-1000.0,0.00014,3]
[327302918,1715976644166,-2000.0,0.00014,2]
[327302920,1715976644176,-2000.0,0.00014,2]
[327302922,1715976644186,-11891.21896066,0.00014,2]
[327302948,1715976644413,-5764.78103934,0.00014,2]
[327302950,1715976644424,-171.0,0.00014,2]
[327302952,1715976644434,-1450.0,0.00014,2]
[327302954,1715976644443,-1438.76,0.00014046,2]
[327302956,1715976644452,-154.51679898,0.0001408,2]
[327302958,1715976644461,-500.0,0.00014083,2]
[327302960,1715976644471,-233.7684276,0.00014096,2]
[327302962,1715976644481,-3257.34540101,0.00014102,2]
[327302964,1715976644492,-225.95350787,0.00014124,2]
[327302966,1715976644501,-158.50296534,0.00014129,2]
[327302968,1715976644510,-473.3,0.00014133,2]
[327302970,1715976644520,-157.66903106,0.00014134,2]
[327302972,1715976644529,-320.57333333,0.00014138,2]
[327302974,1715976644538,-834.12756932,0.00014157,2]
[327302976,1715976644547,-152.99399679,0.00014168,2]
[327302978,1715976644556,-11716.0,0.000142,3]
[327302980,1715976644566,-166.83499667,0.00014223,2]
[327302982,1715976644575,-7109.13182845,0.00014243,2]
[327302984,1715976644585,-500.0,0.00014246,2]
[327302986,1715976644594,-233.7684276,0.00014262,2]
[327302988,1715976644603,-157.337419,0.00014345,2]
[327302990,1715976644613,-512.03488098,0.00014349,2]
[327302992,1715976644622,-225.95350787,0.00014359,2]
[327302995,1715976644634,-250.0,0.00014359,2]
[327302997,1715976644644,-1644.78099032,0.00014362,2]
[327302998,1715976644654,-355.2160912,0.00014367,2]
[327303020,1715976644851,-320.57333333,0.00014374,2]
[327303023,1715976644862,-633.79020776,0.00014379,2]
[327303025,1715976644872,-189.95,0.00014405,2]
[327303027,1715976644882,-1424.96442242,0.00014413,2]
[327303029,1715976644892,-52319.7249917,0.00014454,2]
[327303031,1715976644901,-13169.62281833,0.00014454,2]
[327303032,1715976644911,-560.0,0.00014455,2]
[327303034,1715976644921,-633.79020776,0.00014466,2]
[327303036,1715976644930,-153.2385983,0.00014467,2]
[327303038,1715976644940,-1644.78099032,0.0001447,2]
[327303041,1715976644950,-11716.0,0.000145,5]
[327303043,1715976644960,-223.0,0.000145,2]
[327303045,1715976644969,-262.1,0.000145,2]
[327303046,1715976644979,-353.0,0.000145,2]
[327303049,1715976644989,-1000.0,0.000145,2]
[327303050,1715976644999,-2862.990434,0.00014521,2]
[327303052,1715976645008,-834.12756932,0.00014534,2]
[327303054,1715976645017,-166.66666666,0.00014535,2]
[327303056,1715976645026,-159.96588011,0.00014538,2]
[327303058,1715976645036,-154.51679898,0.00014552,2]
[327303060,1715976645045,-153.90576893,0.0001457,2]
[327303062,1715976645055,-159.96588011,0.0001459,2]
[327303064,1715976645065,-633.79020776,0.00014593,2]
[327303066,1715976645074,-166.66666666,0.00014604,2]
[327303068,1715976645084,-500.0,0.00014647,2]
[327303070,1715976645094,-500.0,0.00014647,2]
[327303073,1715976645104,-500.0,0.00014647,2]
[327303075,1715976645114,-598.29,0.00014647,2]
[327303076,1715976645123,-265.28,0.00014647,2]
[327303079,1715976645133,-1012.88,0.0001466,2]
[327303081,1715976645143,-320.57333333,0.00014669,2]
[327303082,1715976645152,-233.7684276,0.00014674,2]
[327303084,1715976645161,-157.337419,0.00014674,2]
[327303086,1715976645171,-166.66666666,0.00014701,2]
[327303088,1715976645180,-166.66666666,0.00014711,2]
[327303090,1715976645190,-320.57333333,0.00014715,2]
[327303092,1715976645199,-500.0,0.00014734,2]
[327303094,1715976645208,-500.0,0.00014734,2]
[327303096,1715976645218,-500.0,0.00014734,2]
[327303098,1715976645227,-500.0,0.00014734,2]
[327303100,1715976645236,-500.0,0.00014734,2]
[327303102,1715976645246,-500.0,0.00014734,2]
[327303104,1715976645256,-500.0,0.00014734,2]
[327303106,1715976645265,-500.0,0.00014734,2]
[327303108,1715976645274,-500.0,0.00014734,2]
[327303110,1715976645283,-500.0,0.00014734,2]
[327303112,1715976645293,-160.45154731,0.0001474,2]
[327303114,1715976645303,-153.90576893,0.00014742,2]
[327303116,1715976645312,-233.7684276,0.0001475,2]
[327303118,1715976645322,-320.57333333,0.00014757,2]
[327303120,1715976645331,-168.02744571,0.00014769,2]
[327303122,1715976645341,-166.66666666,0.00014773,2]
[327303125,1715976645351,-157.66903106,0.00014779,2]
[327303126,1715976645361,-1000.0,0.00014784,7]
[327303129,1715976645370,-500.0,0.00014794,2]
[327303130,1715976645380,-500.0,0.00014794,2]
[327303132,1715976645389,-355.2160912,0.00014811,2]
[327303135,1715976645399,-153.90576893,0.00014816,2]
[327303136,1715976645408,-157.71739218,0.00014819,2]
[327303139,1715976645417,-159.96588011,0.00014819,2]
[327303140,1715976645427,-203.04018551,0.0001482,2]
[327303143,1715976645437,-225.95350787,0.00014821,2]
[327303144,1715976645446,-512.03488098,0.00014827,2]
[327303146,1715976645455,-153.90576893,0.00014848,2]
[327303149,1715976645465,-355.2160912,0.00014848,2]
[327303151,1715976645475,-313.74,0.000149,2]
[327303152,1715976645484,-169.00998554,0.00014903,2]
[327303154,1715976645493,-350.0,0.00014907,2]
[327303157,1715976645502,-166.66666666,0.00014912,2]
[327303159,1715976645512,-834.12756932,0.00014913,2]
[327303161,1715976645521,-300.0,0.00014921,2]
[327303162,1715976645530,-162.0,0.00014922,2]
[327303164,1715976645540,-211.72291381,0.00014922,2]
[327303166,1715976645549,-158.96537893,0.0001496,2]
[327303168,1715976645558,-420.52,0.00014966,2]
[327303170,1715976645568,-302.46,0.00014966,2]
[327303172,1715976645577,-1424.96442242,0.00014984,2]
[327303174,1715976645586,-167.84518346,0.00014987,2]
[327303176,1715976645596,-500.0,0.00014999,2]
[327303178,1715976645605,-500.0,0.00014999,2]
[327303180,1715976645614,-500.0,0.00014999,2]
[327303182,1715976645624,-598.29,0.00014999,2]
[327303184,1715976645634,-500.0,0.00014999,2]
[327303187,1715976645644,-500.0,0.00014999,2]
[327303190,1715976645654,-300.0,0.00014999,2]
[327303193,1715976645664,-300.38992297,0.00014999,2]
[327303196,1715976645673,-300.0,0.00014999,2]
[327303199,1715976645683,-300.0,0.00014999,2]
[327303202,1715976645692,-300.0,0.00014999,2]
[327303205,1715976645702,-300.0,0.00014999,2]
[327303208,1715976645712,-300.0,0.00014999,2]
[327303211,1715976645722,-300.0,0.00014999,2]
[327303214,1715976645731,-300.0,0.00014999,2]
[327303217,1715976645742,-300.0,0.00014999,2]
[327303219,1715976645756,-618.61889928,0.00015,2]
[327303221,1715976645764,-168.80796899,0.00015,2]
[327303222,1715976645774,-4214.85105681,0.00015,2]
[327303224,1715976645783,-192.22719447,0.00015,2]
[327303226,1715976645793,-485.0,0.00015,2]
[327303228,1715976645802,-1914.82579666,0.00015,2]
[327303230,1715976645812,-222530.06675365,0.00015,2]
[327303232,1715976645822,-200.0,0.00015,2]
[327303234,1715976645833,-1000.0,0.00015,2]
[327303235,1715976645842,-485.0,0.00015,2]
[327303236,1715976645851,-217.55364318,0.00015,2]
[327303238,1715976645861,-485.0,0.00015,2]
[327303240,1715976645870,-257.53900659,0.00015,2]
[327303242,1715976645879,-2000.0,0.00015,2]
[327303244,1715976645888,-2000.0,0.00015,2]
[327303246,1715976645898,-19505.40181553,0.00015,2]
[327303248,1715976645907,-503.2751436,0.00015,2]
[327303250,1715976645916,-500.0,0.00015,2]
[327303252,1715976645925,-3436.65563523,0.00015,2]
[327303254,1715976645934,-77126.35134695,0.00015,2]
[327303257,1715976645948,-394.18780526,0.00015,2]
[327303259,1715976645963,-1063.02950284,0.00015,2]
[327303261,1715976645974,-250.8249007,0.00015,2]
[327303265,1715976645995,-44292.2715113,0.00015,2]
[327303274,1715976646072,-10904.9250405,0.00014759,2]
[327303276,1715976646082,-3732.2909595,0.00015,2]
[327303284,1715976646147,-817.82411991,0.00012998,2]
[327303286,1715976646156,-206.52958738,0.00012999,2]
[327303289,1715976646165,-11206.02826591,0.00015,2]
[327303291,1715976646174,-200.0,0.00015,7]
[327303293,1715976646183,-200.0,0.00015,7]
[327303295,1715976646192,-200.0,0.00015,7]
[327303297,1715976646201,-200.0,0.00015,7]
[327303299,1715976646209,-200.0,0.00015,7]
[327303301,1715976646218,-200.0,0.00015,7]
[327303303,1715976646227,-200.0,0.00015,7]
[327303305,1715976646237,-200.0,0.00015,7]
[327303307,1715976646245,-200.0,0.00015,7]
[327303309,1715976646254,-157.74934309,0.00015,7]
[327303311,1715976646263,-266.05094558,0.00015,14]
[327303313,1715976646272,-14819.0,0.00015,2]
[327303315,1715976646281,-200.0,0.00015,7]
[327303317,1715976646291,-200.0,0.00015,7]
[327303319,1715976646300,-200.0,0.00015,7]
[327303320,1715976646309,-200.0,0.00015,7]
[327303323,1715976646319,-157.337419,0.00015012,2]
[327303325,1715976646328,-500.0,0.00015068,2]
[327303327,1715976646337,-500.0,0.00015068,2]
[327303329,1715976646346,-300.0,0.00015068,2]
[327303330,1715976646355,-633.79020776,0.00015086,2]
[327303332,1715976646364,-512.03488098,0.00015091,2]
[327303335,1715976646374,-1424.96442242,0.00015096,2]
[327303336,1715976646382,-233.7684276,0.0001511,2]
[327303338,1715976646391,-157.66903106,0.00015119,2]
[327303340,1715976646400,-154.51679898,0.00015145,2]